fUSD/lending_fUSD_20240129
["ID","MTS","AMOUNT","RATE_DAILY","PERIOD"]
[312958695,1706541031678,-1882.01883733,0.00021977,2]
[312958697,1706541031687,-116.27129875,0.00022038,2]
[312958698,1706541031699,-280.44870125,0.00022038,2]
[312958699,1706541031708,-525.05137064,0.00022142,2]
[312958711,1706541037556,-197.88862936,0.00022142,2]
[312958712,1706541037568,-232.21184938,0.000223,2]
[312958713,1706541037580,-232.21184935,0.00022332,2]
[312958714,1706541037592,-232.21184935,0.00022363,2]
[312958715,1706541037619,-232.21184935,0.00022395,2]
[312958716,1706541037638,-835.97,0.00022395,2]
[312958717,1706541037652,-150.0,0.00022399,2]
[312958718,1706541037667,-150.0,0.00022399,2]
[312958719,1706541037682,-5326.0,0.000224,2]
[312958720,1706541037695,-232.21184935,0.00022426,2]
[312958721,1706541037709,-721.0,0.00022436,2]
[312958722,1706541037725,-232.21184935,0.00022458,2]
[312958723,1706541037739,-232.21184935,0.00022489,2]
[312958724,1706541037752,-232.21184935,0.00022521,2]
[312958725,1706541037765,-717.03,0.00022529,2]
[312958726,1706541037778,-232.21184935,0.00022553,2]
[312958727,1706541037791,-232.21184935,0.00022584,2]
[312958728,1706541037805,-372.93,0.000226,2]
[312958729,1706541037818,-232.21184935,0.00022616,2]
[312958730,1706541037833,-232.21184935,0.00022647,2]
[312958733,1706541037846,-205.0,0.00022648,2]
[312958735,1706541037858,-205.0,0.00022648,2]
[312958737,1706541037872,-232.21184935,0.00022679,2]
[312958739,1706541037884,-1000.0,0.000227,2]
[312958741,1706541037896,-232.21184935,0.00022711,2]
[312958744,1706541037910,-232.21184935,0.00022742,2]
[312958746,1706541037923,-343.49,0.00022769,2]
[312958748,1706541037935,-150.99,0.0002277,2]
[312958750,1706541037947,-232.21184935,0.00022774,2]
[312958753,1706541037958,-1000.0,0.000228,2]
[312958755,1706541037970,-232.21184935,0.00022805,2]
[312958757,1706541037982,-200.0,0.00022816,2]
[312958760,1706541037994,-800.0,0.00022816,2]
[312958762,1706541038006,-200.0,0.00022816,2]
[312958764,1706541038018,-232.21184935,0.00022837,2]
[312958766,1706541038031,-286.75,0.00022841,2]
[312958769,1706541038043,-313.57846012,0.00022868,3]
[312958771,1706541038056,-232.21184935,0.00022868,2]
[312958774,1706541038068,-384.66969793,0.00022883,2]
[312958777,1706541038086,-151.4,0.0002289,2]
[312958779,1706541038099,-1348.76942551,0.00022892,2]
[312958781,1706541038112,-2723.88726317,0.00022893,2]
[312958784,1706541038126,-1280.13108251,0.00022893,2]
[312958786,1706541038140,-2309.54511602,0.00022893,2]
[312958789,1706541038153,-4356.58302865,0.00022893,2]
[312958791,1706541038166,-1812.47964369,0.00022893,2]
[312958793,1706541038179,-2765.74700008,0.00022893,2]
[312958796,1706541038192,-302739.78659807,0.00022893,2]
[312958799,1706541038210,-272.7999999,0.00022893,2]
[312958801,1706541038225,-139700.84882576,0.00022893,2]
[312958803,1706541038237,-1069.82214184,0.00022893,2]
[312958804,1706541038249,-1257.66975103,0.00022893,2]
[312958805,1706541038260,-2676.89996798,0.00022893,2]
[312958806,1706541038272,-2634.62561003,0.00022893,2]
[312958807,1706541038283,-4451.1855684,0.00022894,2]
[312958808,1706541038295,-10565.92802025,0.00022894,2]
[312958809,1706541038306,-3032.26696473,0.00022894,2]
[312958810,1706541038318,-150.6,0.00022895,2]
[312958812,1706541038329,-10801.1596,0.00022895,2]
[312958814,1706541038341,-718.37,0.00022895,2]
[312958816,1706541038353,-88415.4533,0.00022895,2]
[312958818,1706541038364,-593.5956,0.00022895,2]
[312958821,1706541038375,-725.6,0.00022895,2]
[312958823,1706541038390,-13916.5577,0.00022897,2]
[312958826,1706541038404,-2530.17012578,0.00022899,2]
[312958828,1706541038417,-730.78,0.000229,2]
[312958830,1706541038431,-157.32328049,0.000229,2]
[312958833,1706541038444,-232.21184935,0.000229,2]
[312958835,1706541038457,-454.33085828,0.000229,2]
[312958838,1706541038471,-1000.0,0.000229,2]
[312958840,1706541038484,-227.61934829,0.000229,2]
[312958842,1706541038494,-667.1371333,0.00022997,2]
[312958844,1706541038503,-500.0,0.00022997,2]
[312958846,1706541038512,-194.1933805,0.00022997,2]
[312958848,1706541038521,-584.68050084,0.00022997,2]
[312958850,1706541038532,-902.0,0.00022998,2]
[312958852,1706541038542,-506863.61444946,0.00022998,2]
[312958854,1706541038552,-1990.70190903,0.00022999,2]
[312958856,1706541038561,-206.4659864,0.00022999,2]
[312958858,1706541038571,-565.67511727,0.00022999,2]
[312958860,1706541038580,-196.2404476,0.00022999,2]
[312958863,1706541038591,-194.43371612,0.00022999,2]
[312958865,1706541038600,-500.0,0.00022999,2]
[312958867,1706541038609,-500.0,0.00022999,2]
[312958869,1706541038618,-500.0,0.00022999,2]
[312958871,1706541038628,-500.0,0.00022999,2]
[312958909,1706541038965,-608.2733187,0.00022999,2]
[312958912,1706541038989,-369.32264127,0.00022999,2]
[312958914,1706541038999,-306.1809231,0.00022999,2]
[312958916,1706541039009,-500.0,0.00022999,2]
[312958918,1706541039019,-272.03721873,0.00022999,2]
[312958920,1706541039028,-500.0,0.00022999,2]
[312958922,1706541039037,-500.0,0.00022999,2]
[312958924,1706541039049,-500.0,0.00022999,2]
[312958927,1706541039059,-500.0,0.00022999,2]
[312958928,1706541039073,-500.0,0.00022999,2]
[312958930,1706541039116,-500.0,0.00022999,2]
[312958932,1706541039125,-500.0,0.00022999,2]
[312958934,1706541039134,-500.0,0.00022999,2]
[312958936,1706541039143,-234.69300292,0.00022999,2]
[312958938,1706541039152,-500.0,0.00022999,2]
[312958940,1706541039161,-500.0,0.00022999,2]
[312958942,1706541039171,-500.0,0.00022999,2]
[312958944,1706541039180,-500.0,0.00022999,2]
[312958946,1706541039188,-500.0,0.00022999,2]
[312958948,1706541039197,-500.0,0.00022999,2]
[312958950,1706541039208,-175.22362242,0.00022999,2]
[312958952,1706541039217,-500.0,0.00022999,2]
[312958955,1706541039226,-232269.17756745,0.00023,2]
[312958957,1706541039235,-794733.99101168,0.00023,2]
[312958972,1706541039352,-1020.70146777,0.00023,2]
[312958976,1706541039379,-418535.55557417,0.00023,2]
[312958978,1706541039389,-561188.91642873,0.00023,2]
[312959019,1706541039985,-133670.97481069,0.00023,2]
[312959027,1706541040040,-2494.13220309,0.00023,2]
[312959028,1706541040694,-590.95400001,0.00023,2]
[312959029,1706541040750,-828.56922861,0.00023,2]
[312959030,1706541040762,-21459.44416083,0.00023,2]
[312959031,1706541040774,-1768.45637484,0.00023,2]
[312959032,1706541040787,-465.82650474,0.00023,2]
[312959033,1706541040812,-491.35519383,0.00023,2]
[312959034,1706541040826,-629.41,0.00023,2]
[312959035,1706541040870,-108395.0902808,0.00023,2]
[312959036,1706541040922,-524.32057752,0.00023,2]
[312959058,1706541042558,-20451.4961243,0.00023,2]
[312959059,1706541042568,-67737.35204243,0.00023,2]
[312959060,1706541042599,-6294.58052962,0.00023,2]
[312959084,1706541047125,-213.54512248,0.00022999,2]
[312959085,1706541047135,-893.0,0.00023,2]
[312959086,1706541047144,-144957.90058987,0.00023,2]
[312959087,1706541047153,-130274.52479895,0.00023,2]
[312959088,1706541047181,-559.3,0.00023,2]
[312959089,1706541047192,-648.91636192,0.00023,2]
[312959090,1706541047237,-2209.38646151,0.00023,2]
[312959091,1706541047249,-1161.65779232,0.00023,2]
[312959092,1706541047261,-325.71932272,0.00023,2]
[312959093,1706541047272,-914.22804005,0.00023,2]
[312959094,1706541047426,-25053.01716206,0.00023,2]
[312959095,1706541047438,-2642.2011,0.00023,2]
[312959096,1706541047471,-222490.38244664,0.00023,2]
[312959122,1706541464566,446.36,0.0002053,2]
[312959126,1706541603856,500.0,0.00021844,3]
[312959128,1706541770746,202.35008549,0.00020213,2]
[312959129,1706541787582,151.0,0.00031184,120]
[312959130,1706541878752,2822.08,0.00021558,2]
[312959131,1706541888521,424.04,0.0001967,2]
[312959132,1706541911227,254.4,0.00021573,2]
[312959133,1706541934408,200.0,0.00021568,2]
[312959134,1706542040227,151.0,0.00031299,120]
[312959135,1706542056677,200.95,0.00021608,2]
[312959136,1706542104429,853.22,0.00021603,2]
[312959137,1706542111291,1259.48,0.00021603,2]
[312959141,1706542204072,204.0,0.00021521,2]
[312959152,1706542231697,-174.41982976,0.00021623,2]
[312959153,1706542231711,-200.0,0.00021624,2]
[312959154,1706542231725,-687.24,0.0002165,2]
[312959155,1706542231738,-200.0,0.0002165,2]
[312959156,1706542231748,-480.85,0.00021651,2]
[312959157,1706542231759,-2000.0,0.0002171,2]
[312959158,1706542231770,-150.0,0.00021789,2]
[312959159,1706542231783,-155.39,0.00021864,2]
[312959160,1706542231796,-3880.54017024,0.00021918,2]
[312959161,1706542231825,-519.97535259,0.00021918,2]
[312959162,1706542231838,-500.0,0.00021918,2]
[312959163,1706542231874,-450.0,0.00021918,2]
[312959169,1706542237631,-2966.26000985,0.0002165,2]
[312959170,1706542237690,-7809.65999015,0.0002165,2]
[312959171,1706542237701,-4649.48447717,0.00021918,2]
[312959172,1706542237711,-11900.0,0.00021918,2]
[312959173,1706542237720,-424.04,0.00021934,2]
[312959174,1706542237731,-172.47,0.00021994,2]
[312959175,1706542237742,-155.39,0.00022027,2]
[312959176,1706542237752,-3076.57990596,0.00022115,2]
[312959177,1706542237762,-800.0,0.00022117,2]
[312959178,1706542237771,-155.39,0.0002219,2]
[312959179,1706542237781,-155.39,0.00022353,2]
[312959180,1706542237791,-155.39,0.00022515,2]
[312959181,1706542237801,-21087.0,0.00022542,2]
[312959182,1706542237811,-155.39,0.00022678,2]
[312959183,1706542237822,-263.89340349,0.000227,3]
[312959184,1706542237832,-1000.0,0.000227,2]
[312959185,1706542237841,-449.0118,0.000228,2]
[312959186,1706542237851,-1000.0,0.000228,2]
[312959187,1706542237862,-200.0,0.00022816,2]
[312959188,1706542237872,-800.0,0.00022816,2]
[312959189,1706542237881,-200.0,0.00022816,2]
[312959190,1706542237890,-155.39,0.00022841,2]
[312959191,1706542237900,-11103.6912,0.000229,2]
[312959192,1706542237918,-506863.61444946,0.000229,2]
[312959193,1706542237929,-1025.5675796,0.00022998,3]
[312959194,1706542237939,-403.97517887,0.00022998,2]
[312959195,1706542237949,-1000.0,0.00022999,2]
[312959196,1706542237958,-500.0,0.00022999,2]
[312959197,1706542237968,-362.35943563,0.00022999,2]
[312959199,1706542237977,-123880.4547331,0.00023,2]
[312959201,1706542237987,-731.34,0.00023,2]
[312959203,1706542237996,-218456.72484126,0.00023,2]
[312959205,1706542238006,-1000.0,0.00023,2]
[312959207,1706542238015,-2696.10517982,0.00023002,2]
[312959209,1706542238025,-1003.40383443,0.00023002,2]
[312959211,1706542238035,-155.39,0.00023004,2]
[312959213,1706542238045,-423.5759568,0.000231,3]
[312959215,1706542238054,-1000.0,0.000231,2]
[312959217,1706542238064,-17448.38518006,0.0002313,2]
[312959219,1706542238074,-921.23426873,0.00023143,2]
[312959221,1706542238084,-1824.0,0.000232,2]
[312959223,1706542238093,-480.85,0.00023294,2]
[312959225,1706542238103,-196.05,0.00023682,2]
[312959227,1706542238112,-203.53815699,0.00024,2]
[312959229,1706542238121,-150.0,0.0002411,2]
[312959231,1706542238131,-155.42229511,0.00024116,2]
[312959233,1706542238140,-424.04,0.00024198,2]
[312959236,1706542238149,-200.0,0.00024264,2]
[312959238,1706542238159,-169.67,0.00024297,2]
[312959240,1706542238169,-173.37338105,0.000243,2]
[312959242,1706542238178,-756.47,0.00024384,2]
[312959244,1706542238188,-5464.3,0.00024384,2]
[312959246,1706542238197,-250.0,0.00024658,2]
[312959248,1706542238209,-204.0,0.00024727,6]
[312959250,1706542238219,-800.0,0.00024882,2]
[312959252,1706542238229,-157.32328047,0.000249,2]
[312959254,1706542238238,-2319.32261528,0.000249,2]
[312959256,1706542238247,-480.85,0.00024938,2]
[312959258,1706542238258,-192.4053857,0.00025,5]
[312959260,1706542238268,-568.44489099,0.00025,2]
[312959262,1706542238278,-1053.21071241,0.00025,2]
[312959264,1706542238289,-20000.0,0.00025,2]
[312959266,1706542238299,-209.26532169,0.00025,2]
[312959268,1706542238308,-3023.2472019,0.00025,2]
[312959269,1706542238318,-142083.58564079,0.00025,2]
[312959270,1706542238327,-694.0,0.00025,2]
[312959271,1706542238337,-159.81400215,0.00025,2]
[312959272,1706542238347,-203.76117183,0.00025,2]
[312959273,1706542238357,-412.51935128,0.00025,2]
[312959274,1706542238367,-169.80994236,0.00025,2]
[312959275,1706542238377,-550.0,0.00025,3]
[312959276,1706542238387,-303.921,0.00025,2]
[312959277,1706542238396,-150.0,0.000253,2]
[312959278,1706542238406,-155.0,0.0002582,2]
[312959279,1706542238415,-500.0,0.0002582,2]
[312959280,1706542238425,-155.0,0.0002582,2]
[312959281,1706542238435,-150.0,0.00026079,2]
[312959282,1706542238444,-196.05,0.00026194,2]
[312959283,1706542238455,-169.67,0.00026302,2]
[312959284,1706542238465,-640.15828042,0.00026385,2]
[312959285,1706542238474,-191.03068825,0.00026385,2]
[312959286,1706542238483,-155.42312149,0.00026385,2]
[312959287,1706542238493,-701.47543976,0.00026385,2]
[312959288,1706542238502,-837.37388275,0.00026385,2]
[312959289,1706542238512,-172.47,0.00026393,2]
[312959290,1706542238522,-424.04,0.00026462,2]
[312959291,1706542238531,-1000.0,0.00026575,2]
[312959292,1706542238541,-480.85,0.00026582,2]
[312959293,1706542238550,-2319.32261522,0.00026718,2]
[312959294,1706542238560,-200.0,0.0002696,2]
[312959295,1706542238570,-417.13678761,0.00027,2]
[312959296,1706542238579,-600.0,0.00027,3]
[312959297,1706542238589,-278.478673,0.00027,2]
[312959298,1706542238598,-391.68,0.00027397,2]
[312959299,1706542238607,-160.5,0.00027397,2]
[312959300,1706542238617,-153.36,0.00027397,2]
[312959301,1706542238626,-155.47,0.00027397,2]
[312959302,1706542238636,-170.68,0.00027397,2]
[312959303,1706542238646,-3482.56,0.00027397,2]
[312959304,1706542238656,-156.82770714,0.000275,2]
[312959305,1706542238665,-800.0,0.00027647,2]
[312959306,1706542238675,-5308.57,0.00027671,2]
[312959307,1706542238685,-391.68,0.0002783,2]
[312959308,1706542238694,-155.47,0.00027895,2]
[312959309,1706542238703,-19176.38800721,0.000279,2]
[312959310,1706542238712,-204.0,0.00027934,11]
[312959311,1706542238722,-695.80448376,0.00028,2]
[312959312,1706542238733,-153.36,0.00028006,2]
[312959313,1706542238747,-480.85,0.00028226,2]
[312959314,1706542238757,-391.68,0.00028262,2]
[312959315,1706542238767,-169.67,0.00028307,2]
[312959316,1706542238777,-160.5,0.0002831,2]
[312959317,1706542238787,-155.47,0.00028394,2]
[312959318,1706542238797,-170.68,0.00028493,2]
[312959319,1706542238807,-2319.32261522,0.00028536,2]
[312959320,1706542238817,-153.36,0.00028615,2]
[312959321,1706542238827,-391.68,0.00028695,2]
[312959322,1706542238837,-5308.57,0.00028695,2]
[312959323,1706542238847,-196.05,0.00028707,2]
[312959324,1706542238858,-424.04,0.00028726,2]
[312959325,1706542238868,-799.0,0.00028892,5]
[312959326,1706542238877,-155.47,0.00028892,2]
[312959327,1706542238887,-289.71028567,0.00028963,2]
[312959328,1706542238897,-1000.0,0.00029,2]
[312959329,1706542238907,-23778.52759587,0.00029,15]
[312959330,1706542238934,-12439.93058769,0.00029,15]
[312959331,1706542238943,-650.0,0.00029,3]
[312959332,1706542238954,-684.951712,0.00029,2]
[312959333,1706542238963,-391.68,0.00029128,2]
[312959334,1706542238972,-160.5,0.00029224,2]
[312959335,1706542238982,-153.36,0.00029224,2]
[312959336,1706542238992,-155.47,0.0002939,2]
[312959337,1706542239002,-391.68,0.0002956,2]
[312959338,1706542239011,-170.68,0.00029589,2]
[312959339,1706542239021,-200.0,0.00029656,2]
[312959340,1706542239031,-5308.57,0.00029719,2]
[312959341,1706542239041,-153.36,0.00029833,2]
[312959342,1706542239051,-480.85,0.0002987,2]
[312959343,1706542239061,-155.47,0.00029888,2]
[312959344,1706542239070,-184.15324273,0.000299,2]
[312959345,1706542239080,-99000.7500167,0.000299,2]
[312959358,1706542240281,-4627.47777238,0.000299,2]
[312959359,1706542240295,-391.68,0.00029993,2]
[312959360,1706542240306,-1216.88158615,0.0003,4]
[312959361,1706542240319,-155.0,0.0003,2]
[312959362,1706542240330,-302.96835776,0.0003,4]
[312959363,1706542240341,-2008.22376702,0.0003,2]
[312959364,1706542240351,-586.62238482,0.0003,2]
[312959365,1706542240363,-960.52562,0.0003,2]
[312959366,1706542240374,-375.29939243,0.0003,2]
[312959367,1706542240385,-7171.71520774,0.0003,4]
[312959368,1706542241164,-5108.1657101,0.0003,4]
[312959369,1706542241174,-693.5979328,0.0003,2]
[312959370,1706542241185,-9696.20396278,0.0003,2]
[312959371,1706542241194,-518.0615546,0.0003,5]
[312959372,1706542241208,-8505.31329781,0.0003,4]
[312959373,1706542241219,-1034.0,0.0003,3]
[312959374,1706542241229,-297.5883722,0.0003,4]
[312959375,1706542241240,-160.85990739,0.0003,4]
[312959376,1706542241251,-155.89222863,0.0003,4]
[312959377,1706542241261,-439.76539035,0.0003,4]
[312959378,1706542241271,-1811.10395059,0.0003,4]
[312959379,1706542241282,-449.59414859,0.0003,4]
[312959381,1706542241292,-156.69679072,0.0003,4]
[312959383,1706542241302,-907.9581364,0.0003,4]
[312959385,1706542241311,-270.43342454,0.0003,4]
[312959386,1706542241320,-258.02445967,0.0003,4]
[312959388,1706542241330,-818.03888278,0.0003,4]
[312959389,1706542241339,-411.32449679,0.0003,2]
[312959391,1706542241349,-177.02124406,0.0003,4]
[312959393,1706542241358,-8082.52145522,0.0003,4]
[312959395,1706542241369,-1589.84133871,0.0003,4]
[312959397,1706542241378,-3895.34477027,0.0003,7]
[312959399,1706542241387,-4610.89990853,0.0003,3]
[312959402,1706542241411,-290.47450017,0.0003,3]
[312959435,1706542242700,-174.41982976,0.00029899,2]
[312959437,1706542242710,-135.83821172,0.0003,3]
[312959450,1706542242834,-349.7894387,0.0003,3]
[312959479,1706542245874,-891.60504155,0.0003,3]
[312959480,1706542245942,-4213.50930001,0.0003,3]
[312959518,1706542263849,205.0,0.00021521,2]
[312959519,1706542324262,204.0,0.00021521,2]
[312959520,1706542328686,268.84192805,0.0002,2]
[312959523,1706543172310,660.576,0.00029,30]
[312959524,1706543409088,318.03,0.00020365,2]
[312959559,1706543431838,-433.90061289,0.00021671,2]
[312959560,1706543431851,-83.94977395,0.00021671,2]
[312959561,1706543431861,-555.35715782,0.00021671,2]
[312959562,1706543431934,-362.1013399,0.00021671,2]
[312959563,1706543432055,-587.67166474,0.00021671,2]
[312959603,1706543438331,-1139.29018939,0.0002167,2]
[312959604,1706543438342,-806.93659773,0.00021671,2]
[312959605,1706543438352,-522.1442142,0.00021672,2]
[312959606,1706543438362,-581.12036857,0.00021673,2]
[312959607,1706543438372,-942.62232842,0.00021673,2]
[312959608,1706543438381,-2953.45643377,0.00021674,2]
[312959609,1706543438390,-174.41982976,0.00021674,2]
[312959610,1706543438414,-526.2789764,0.00021675,2]
[312959612,1706543438424,-150.0,0.00021685,2]
[312959614,1706543438433,-163.29628754,0.00021698,2]
[312959616,1706543438443,-564.34,0.00022297,2]
[312959618,1706543438453,-2000.0,0.00022311,2]
[312959620,1706543438463,-25505.65,0.00022315,2]
[312959622,1706543438473,-3267.0,0.000224,2]
[312959624,1706543438483,-150.0,0.00022426,2]
[312959626,1706543438492,-181.09,0.00022439,2]
[312959628,1706543438501,-305.24,0.00022445,2]
[312959630,1706543438512,-1090.70643659,0.00022499,2]
[312959632,1706543438522,-2335.30668371,0.000225,2]
[312959634,1706543438532,-5595.0,0.000225,2]
[312959636,1706543438542,-250.0,0.00022583,2]
[312959638,1706543438551,-1005.01,0.00022621,2]
[312959640,1706543438561,-318.03,0.00022628,2]
[312959642,1706543438570,-500.0,0.00022703,2]
[312959644,1706543438581,-499.99,0.00022799,2]
[312959647,1706543438592,-308.6605,0.000228,2]
[312959648,1706543438601,-157.10983001,0.000228,2]
[312959651,1706543438611,-1771.8,0.00022829,2]
[312959653,1706543438623,-203.34,0.00022843,2]
[312959654,1706543438632,-81.92672584,0.00022857,2]
[312959660,1706543438679,-118.07327416,0.00022857,2]
[312959662,1706543438689,-250.0,0.00022857,2]
[312959664,1706543438698,-155.5,0.00022868,2]
[312959666,1706543438708,-163.29628754,0.00022889,2]
[312959668,1706543438719,-1000.0,0.00023265,2]
[312959670,1706543438729,-13074.24,0.00023266,2]
[312959672,1706543438738,-13416.69,0.00023377,2]
[312959674,1706543438748,-246.89,0.00023677,2]
[312959676,1706543438758,-210.0,0.00023854,2]
[312959678,1706543438768,-200.0,0.00023946,2]
[312959680,1706543438777,-163.29628754,0.00024081,2]
[312959682,1706543438787,-4553.58,0.00024384,2]
[312959684,1706543438798,-203.34,0.00024486,2]
[312959686,1706543438807,-250.0,0.00024658,2]
[312959688,1706543438817,-1222.47563053,0.00024856,2]
[312959690,1706543438827,-318.03,0.00024892,2]
[312959691,1706543438837,-506863.61444946,0.00024954,2]
[312959693,1706543438846,-3011.67714353,0.00025,2]
[312959695,1706543438856,-550.0,0.00025,3]
[312959697,1706543438865,-163.29628754,0.00025272,2]
[312959699,1706543438875,-166.31,0.00025533,2]
[312959701,1706543438884,-150.0,0.000257,2]
[312959703,1706543438893,-150.0,0.00026079,2]
[312959705,1706543438907,-203.34,0.0002613,2]
[312959707,1706543438916,-1040.88,0.0002614,2]
[312959709,1706543438926,-209.67,0.0002614,2]
[312959711,1706543438936,-293.0,0.00026239,2]
[312959712,1706543438945,-200.0,0.00026288,2]
[312959714,1706543438954,-295.804545,0.00026288,2]
[312959715,1706543438963,-163.29628754,0.00026463,2]
[312959716,1706543438973,-1000.0,0.00026575,2]
[312959717,1706543438982,-150.0,0.00026677,2]
[312959718,1706543438991,-600.0,0.00027,3]
[312959719,1706543439000,-318.03,0.00027156,2]
[312959720,1706543439010,-299.45,0.00027397,2]
[312959721,1706543439019,-197.33,0.00027397,2]
[312959722,1706543439028,-163.29628754,0.00027654,2]
[312959723,1706543439037,-2369.38,0.00027671,2]
[312959724,1706543439047,-299.45,0.00027686,2]
[312959725,1706543439056,-1222.47563046,0.00027705,3]
[312959726,1706543439065,-203.34,0.00027774,2]
[312959727,1706543439074,-300.0,0.00027866,2]
[312959728,1706543439083,-500.0,0.00027866,2]
[312959729,1706543439092,-500.0,0.00027866,2]
[312959730,1706543439102,-500.0,0.00027866,2]
[312959731,1706543439111,-500.0,0.00027866,2]
[312959732,1706543439120,-500.0,0.00027866,2]
[312959733,1706543439130,-500.0,0.00027866,2]
[312959734,1706543439139,-500.0,0.00027866,2]
[312959735,1706543439149,-500.0,0.00027866,2]
[312959736,1706543439164,-500.0,0.00027866,2]
[312959737,1706543439173,-500.0,0.00027866,2]
[312959738,1706543439182,-500.0,0.00027866,2]
[312959739,1706543439192,-500.0,0.00027866,2]
[312959740,1706543439201,-500.0,0.00027866,2]
[312959741,1706543439210,-500.0,0.00027866,2]
[312959742,1706543439219,-500.0,0.00027866,2]
[312959743,1706543439229,-500.0,0.00027866,2]
[312959744,1706543439238,-500.0,0.00027866,2]
[312959745,1706543439248,-500.0,0.00027866,2]
[312959746,1706543439257,-500.0,0.00027866,2]
[312959747,1706543439266,-500.0,0.00027866,2]
[312959748,1706543439284,-500.0,0.00027866,2]
[312959749,1706543439297,-500.0,0.00027866,2]
[312959750,1706543439307,-500.0,0.00027866,2]
[312959751,1706543439316,-500.0,0.00027866,2]
[312959752,1706543439325,-500.0,0.00027866,2]
[312959753,1706543439335,-500.0,0.00027866,2]
[312959754,1706543439345,-500.0,0.00027866,2]
[312959755,1706543439355,-500.0,0.00027866,2]
[312959756,1706543439364,-150.0,0.00027866,2]
[312959757,1706543439374,-500.0,0.00027866,2]
[312959758,1706543439384,-500.0,0.00027866,2]
[312959759,1706543439393,-500.0,0.00027866,2]
[312959760,1706543439406,-500.0,0.00027866,2]
[312959761,1706543439417,-500.0,0.00027866,2]
[312959762,1706543439426,-500.0,0.00027866,2]
[312959763,1706543439436,-500.0,0.00027866,2]
[312959764,1706543439446,-500.0,0.00027866,2]
[312959765,1706543439456,-500.0,0.00027866,2]
[312959766,1706543439465,-500.0,0.00027866,2]
[312959767,1706543439474,-500.0,0.00027866,2]
[312959768,1706543439484,-500.0,0.00027866,2]
[312959769,1706543439493,-500.0,0.00027866,2]
[312959770,1706543439502,-500.0,0.00027866,2]
[312959771,1706543439511,-500.0,0.00027866,2]
[312959772,1706543439520,-500.0,0.00027866,2]
[312959773,1706543439530,-500.0,0.00027866,2]
[312959774,1706543439539,-500.0,0.00027866,2]
[312959775,1706543439549,-500.0,0.00027866,2]
[312959776,1706543439558,-500.0,0.00027866,2]
[312959777,1706543439568,-500.0,0.00027866,2]
[312959778,1706543439578,-19176.38800721,0.000279,2]
[312959779,1706543439590,-299.45,0.00027974,2]
[312959780,1706543439599,-205.0,0.00028141,2]
[312959781,1706543439609,-299.45,0.00028262,2]
[312959782,1706543439623,-1124.46431136,0.0002842,2]
[312959783,1706543439633,-1100.38183319,0.0002842,2]
[312959784,1706543439644,-299.45,0.00028551,2]
[312959785,1706543439656,-2369.38,0.00028695,2]
[312959786,1706543439666,-960.0,0.00028751,2]
[312959787,1706543439678,-3195.91206529,0.00028794,2]
[312959788,1706543439689,-299.45,0.00028839,2]
[312959789,1706543439701,-163.29628754,0.00028846,2]
[312959790,1706543439711,-200.0,0.00028855,2]
[312959791,1706543439720,-200.67071866,0.00028855,2]
[312959792,1706543439730,-181.81893129,0.00028971,2]
[312959793,1706543439740,-650.0,0.00029,3]
[312959794,1706543439750,-2599.8421,0.00029,2]
[312959795,1706543439760,-200.0,0.00029,2]
[312959796,1706543439769,-299.45,0.00029128,2]